bitfinex-derivatives/quotes_SOLF0:USTF0_20250109
["timestamp","ask_amount","ask_price","bid_price","bid_amount"]
[1736411940169,18.35574039,192.3,192.14,7.12913289]
[1736411940967,18.35574039,192.3,192.13,38.17573907]
[1736411941165,16.78834039,192.27,192.11,28.51653157]
[1736411941871,16.78834039,192.27,192.11,7.12913289]
[1736411942465,16.78834039,192.24,192.11,7.12913289]
[1736411942672,16.78834039,192.21,192.11,7.12913289]
[1736411942865,16.78834039,192.21,192.09,7.12913289]
[1736411942866,7.4555,192.2,192.09,7.12913289]
[1736411943065,7.4555,192.2,192.09,9.73343289]
[1736411943374,7.4555,192.2,192.09,7.12913289]
[1736411943673,7.4555,192.2,192.07,16.78834039]
[1736411943973,7.4555,192.2,192.04,16.78834039]
[1736411944869,7.4555,192.2,192.09,2.6043]
[1736411945266,3.0355,192.2,192.09,2.6043]
[1736411945472,4.44,192.19,192.09,2.6043]
[1736411946475,16.78834039,192.18,192.07,2.6045]
[1736411946668,16.78834039,192.18,192.03,4.4277]
[1736411946864,16.78834039,192.18,192.08,2.6045]
[1736411947070,16.78834039,192.18,192.01,16.78834039]
[1736411947376,16.78834039,192.18,192.01,19.82694039]
[1736411948264,3.0355,192.2,192.04,16.78834039]
[1736411948465,3.0355,192.2,192.07,16.78834039]
[1736411948674,3.0355,192.2,192.13,2.6037]
[1736411948865,4.44,192.19,192.07,16.78834039]
[1736411949066,3.0355,192.2,192.07,16.78834039]
[1736411949266,3.0355,192.2,192.1,2.6041]
[1736411949471,4.42,192.19,192.06,16.78834039]
[1736411950177,4.42,192.18,192.09,16.78834039]
[1736411950477,4.42,192.18,192.14,2.6036]
[1736411951485,4.42,192.18,192.09,16.78834039]
[1736411951976,1.4766,192.2,192.09,16.78834039]
[1736411951977,4.4,192.19,192.09,16.78834039]
[1736411952576,4.4,192.19,192.1,3.1502]
[1736411953176,4.4,192.19,192.14,2.6035]
[1736411953372,4.4,192.19,192.1,3.1502]
[1736411953580,1.5113,192.23,192.1,4.4726]
[1736411953782,4.4,192.22,192.1,4.4726]
[1736411953980,4.4,192.22,192.14,2.6035]
[1736411954171,4.4,192.22,192.1,3.1502]
[1736411954374,4.4,192.22,192.06,16.78834039]
[1736411954572,0.80952486,192.21,192.1,2.6041]
[1736411954780,0.80952486,192.21,192.06,16.78834039]
[1736411954979,1.5176,192.2,192.06,16.78834039]
[1736411955383,2.29763532,192.19,192.06,16.78834039]
[1736411955580,1.488,192.19,192.06,16.78834039]
[1736411955881,0.80965065,192.18,192.1,2.6042]
[1736411956403,1.488,192.19,192.08,2.6045]
[1736411956577,17.59806229,192.18,192.01,3.0577]
[1736411956778,16.78834039,192.15,192.01,3.0577]
[1736411956978,6.7333219,192.14,192.03,2.605]
[1736411957181,0.8097219,192.13,192.01,3.0577]
[1736411957474,0.8097219,192.13,192.02,2.6052]
[1736411957679,0.8097219,192.13,191.98,1.322]
[1736411958489,5.9236,192.14,191.98,1.322]
[1736411958490,0.80998372,192.12,191.98,1.322]
[1736411958778,5.9236,192.14,191.98,1.322]
[1736411958984,0.80997935,192.13,192.0,16.78834039]
[1736411959585,0.80997935,192.13,192.05,2.6048]
[1736411960084,0.80997935,192.13,192.04,2.605]
[1736411960279,0.80997935,192.13,191.98,1.322]
[1736411960479,4.36,192.12,191.98,1.322]
[1736411960683,0.80997935,192.11,192.04,2.6049]
[1736411960885,4.36,192.12,192.04,2.6049]
[1736411961085,0.81005035,192.11,192.04,2.6049]
[1736411962585,0.81005035,192.11,192.02,2.6052]
[1736411963088,0.81005035,192.11,191.98,1.322]
[1736411963380,4.36,192.12,192.05,2.6049]
[1736411963685,0.81008904,192.11,191.98,1.322]
[1736411964185,0.81013221,192.1,191.98,1.322]
[1736411964379,21.14834039,192.12,191.98,1.322]
[1736411964576,0.81009346,192.11,191.98,1.322]
[1736411964786,0.81009346,192.11,191.97,16.78834039]
[1736411965280,4.34,192.1,191.97,16.78834039]
[1736411965486,4.34,192.09,192.0,16.78834039]
[1736411966079,4.34,192.09,192.06,2.6046]
[1736411966982,4.34,192.09,192.05,2.6049]
[1736411968186,4.34,192.09,192.06,2.6047]
[1736411968386,4.34,192.09,192.0,16.78834039]
[1736411968682,4.34,192.09,192.02,2.6052]
[1736411968881,4.34,192.09,191.97,16.78834039]
[1736411970490,4.34,192.09,192.04,2.605]
[1736411970688,4.34,192.09,191.97,16.78834039]
[1736411971090,4.34,192.09,192.02,2.6052]
[1736411971492,4.34,192.09,191.95,4.4742]
[1736411972191,1.4648,192.1,192.03,2.6051]
[1736411972387,4.28,192.09,191.97,16.78834039]
[1736411972588,1.5032,192.11,192.0,16.78834039]
[1736411972783,1.5436,192.14,192.07,2.6045]
[1736411972989,4.3,192.13,192.03,16.78834039]
[1736411973189,5.11008012,192.13,192.03,16.78834039]
[1736411973495,0.81008012,192.13,192.07,10.41597478]
[1736411974191,4.32,192.17,191.95,4.4742]
[1736411974393,14.73597478,192.17,192.06,10.41597478]
[1736411974892,14.73597478,192.17,192.11,2.604]
[1736411975290,4.32,192.17,192.01,7.07099051]
[1736411975487,4.32,192.17,192.02,16.66999841]
[1736411976094,0.80989172,192.16,192.08,2.6043]
[1736411976391,0.80989172,192.16,192.02,16.66999841]
[1736411976595,0.80989172,192.16,192.06,2.6046]
[1736411976788,16.66999841,192.13,191.99,16.66999841]
[1736411976989,0.81011174,192.12,191.99,16.66999841]
[1736411977190,0.81011174,192.12,192.04,2.605]
[1736411978483,0.81011174,192.12,191.96,16.66999841]
[1736411978689,1.5472,192.11,191.96,16.66999841]
[1736411978889,4.32,192.1,191.96,16.66999841]
[1736411979291,7.4228,192.09,191.96,16.66999841]
[1736411979594,7.4228,192.09,192.03,2.6051]
[1736411979989,7.4228,192.09,191.96,16.66999841]
[1736411980296,7.4228,192.09,192.02,2.6052]
[1736411981989,7.4228,192.09,191.95,4.4742]
[1736411982195,4.32,192.09,191.99,16.66999841]
[1736411983190,4.32,192.09,192.07,2.6045]
[1736411983386,4.32,192.09,191.99,16.66999841]
[1736411983696,4.32,192.09,192.08,2.6045]
[1736411983893,4.3,192.11,192.08,2.6045]
[1736411984291,8.4931562,192.15,192.02,16.66999841]
[1736411984498,4.28,192.14,192.02,16.66999841]
[1736411984791,4.28,192.14,192.05,16.66999841]
[1736411984990,8.4931562,192.18,192.05,16.66999841]
[1736411985192,4.28,192.17,192.06,1.5512]
[1736411985394,4.3,192.17,192.06,1.5512]
[1736411986593,4.3,192.17,192.11,2.604]
[1736411986990,4.3,192.17,192.06,1.5512]
[1736411987189,4.3,192.17,192.12,2.6039]
[1736411987995,4.3,192.17,192.1,2.6041]
[1736411988598,4.3,192.17,192.06,1.5512]
[1736411988897,4.3,192.17,192.11,2.604]
[1736411989297,0.80977549,192.16,192.08,2.6044]
[1736411989598,0.80977549,192.16,192.04,1.3236]
[1736411989998,0.80977549,192.16,192.09,2.6042]
[1736411990194,0.80984885,192.15,192.09,2.6042]
[1736411990394,0.80984885,192.14,192.09,2.6042]
[1736411990594,4.3,192.17,192.04,1.3236]
[1736411990794,0.80984659,192.16,192.04,1.3236]
[1736411991604,0.80984659,192.16,192.11,2.604]
[1736411991795,0.80984659,192.16,192.04,1.3236]
[1736411992195,4.3,192.17,192.04,1.3236]
[1736411992697,4.5696,192.19,192.04,1.3236]
[1736411992894,4.26,192.18,192.04,1.3236]
[1736411993098,5.0697033,192.18,192.04,1.3236]
[1736411993293,0.8097033,192.17,192.04,1.3236]
[1736411993797,0.8097033,192.17,192.11,2.6039]
[1736411994400,0.8097033,192.17,192.12,2.6039]
[1736411994602,4.26,192.16,192.04,1.3236]
[1736411994901,0.8097033,192.15,192.04,1.3236]
[1736411995398,0.80989587,192.14,192.04,1.3236]
[1736411995702,0.80989587,192.13,192.08,2.6043]
[1736411995902,0.80989587,192.12,192.08,2.6043]
[1736411996101,4.26,192.16,192.08,2.6043]
[1736411996303,0.80990236,192.15,192.08,2.6043]
[1736411997100,0.80990236,192.15,192.04,1.3236]
[1736411997403,0.80990236,192.15,192.08,10.41516875]
[1736411998097,4.26,192.16,192.12,2.6039]
[1736411998401,0.8097368,192.15,192.08,10.41516875]
[1736411999004,0.8097368,192.15,192.12,2.6038]
[1736412000306,4.26,192.16,192.12,2.6038]
[1736412000604,0.80974104,192.15,192.12,2.6038]
[1736412001207,4.26,192.16,192.12,2.6038]
[1736412001409,4.22,192.17,192.14,2.6036]
[1736412001606,0.80973977,192.16,192.14,2.6036]
[1736412001815,0.80973977,192.16,192.08,10.41516875]
[1736412002008,10.41516875,192.15,192.04,1.3236]
[1736412002206,0.80973977,192.14,192.04,1.3236]
[1736412002406,0.80973977,192.14,192.1,2.6041]
[1736412002607,4.22,192.17,192.06,10.41516875]
[1736412002804,0.80976902,192.16,192.06,10.41516875]
[1736412003005,0.80976902,192.16,192.12,2.6038]
[1736412003705,0.80976902,192.16,192.09,10.41516875]
[1736412004303,4.2,192.21,192.12,10.41516875]
[1736412004512,0.80959529,192.2,192.12,10.41516875]
[1736412005009,4.2,192.21,192.12,10.41516875]
[1736412005208,0.80951435,192.2,192.12,10.41516875]
[1736412005414,4.2,192.21,192.17,2.6031]
[1736412005808,4.2,192.21,192.18,2.6031]
[1736412006814,4.2,192.21,192.11,2.9847]
[1736412007216,4.2,192.21,192.07,16.65712001]
[1736412008418,4.2,192.21,192.15,2.6035]
[1736412008804,0.80966659,192.2,192.07,16.65712001]
[1736412009009,0.80966659,192.2,192.13,2.6037]
[1736412009209,0.80966659,192.2,192.07,16.65712001]
[1736412010216,9.32337042,192.2,192.07,16.65712001]
[1736412010412,8.51370383,192.2,192.07,16.65712001]
[1736412010714,20.85712001,192.21,192.07,16.65712001]
[1736412010911,0.80966768,192.2,192.07,16.65712001]
[1736412011117,2.40276768,192.2,192.07,16.65712001]
[1736412011316,1.5931,192.2,192.07,16.65712001]
[1736412011614,1.5931,192.2,192.1,2.6041]
[1736412011812,1.5931,192.2,192.07,16.65712001]
[1736412012013,1.5931,192.2,192.05,2.9928]
[1736412012212,1.5931,192.2,192.09,2.6043]
[1736412012418,1.5931,192.2,192.05,2.9928]
[1736412012419,0.80973018,192.19,192.05,2.9928]
[1736412013008,1.5528,192.19,192.05,2.9928]
[1736412013216,1.5528,192.19,192.1,2.6041]
[1736412013417,16.65712001,192.18,191.96,4.16]
[1736412013619,16.65712001,192.18,192.0,16.65712001]
[1736412013809,1.4825,192.17,192.03,16.65712001]
[1736412014515,2.29228828,192.17,192.04,4.4362]
[1736412014818,1.4825,192.17,192.11,2.604]
[1736412015317,0.80979646,192.16,192.11,2.604]
[1736412015507,0.80977544,192.15,192.11,2.604]
[1736412015707,4.96977544,192.14,192.11,2.604]
[1736412015918,4.16,192.14,192.11,2.604]
[1736412016121,4.16,192.14,192.09,2.6043]
[1736412016914,4.16,192.14,192.04,4.4362]
[1736412016915,4.16,192.14,192.05,16.65712001]
[1736412017415,8.51538212,192.17,192.08,16.65712001]
[1736412017714,4.16,192.19,192.08,16.65712001]
[1736412017912,0.80959952,192.18,192.17,2.6033]
[1736412018215,4.16,192.19,192.11,16.65712001]
[1736412018407,3.0805,192.25,192.11,16.65712001]
[1736412018408,11.59588212,192.25,192.11,16.65712001]
[1736412018610,4.98952238,192.24,192.11,16.65712001]
[1736412018808,0.80952238,192.23,192.11,16.65712001]
[1736412019216,4.98952238,192.22,192.11,16.65712001]
[1736412019419,0.80952238,192.21,192.17,2.6031]
[1736412019815,0.80952238,192.21,192.11,16.65712001]
[1736412020314,4.18,192.22,192.14,16.65712001]
[1736412020522,1.5829,192.25,192.14,16.65712001]
[1736412020716,0.8093378,192.24,192.15,3.1071]
[1736412020911,0.80933609,192.24,192.17,16.65712001]
[1736412021116,12.69538212,192.29,192.2,16.65712001]
[1736412021319,0.80928335,192.28,192.2,16.65712001]
[1736412021520,0.80928335,192.28,192.17,16.65712001]
[1736412021916,0.80928335,192.28,192.25,2.6021]
[1736412022117,0.80928335,192.28,192.17,16.65712001]
[1736412022324,0.80928335,192.28,192.25,2.602]
[1736412022619,0.80928335,192.28,192.17,16.65712001]
[1736412023424,4.16,192.31,192.27,2.6019]
[1736412023625,0.80913759,192.3,192.27,2.6019]
[1736412024522,0.80912173,192.29,192.23,16.65712001]
[1736412024714,4.16,192.33,192.23,16.65712001]
[1736412024915,0.80912295,192.32,192.23,16.65712001]
[1736412025524,0.80912295,192.32,192.27,2.6018]
[1736412025825,0.80912295,192.32,192.23,16.65712001]
[1736412026024,0.80913675,192.31,192.23,16.65712001]
[1736412026229,0.80913675,192.3,192.2,16.65712001]
[1736412026528,0.80913675,192.29,192.17,16.65712001]
[1736412026723,0.80922854,192.28,192.17,16.65712001]
[1736412027021,0.80922854,192.27,192.17,16.65712001]
[1736412027227,4.94922854,192.26,192.17,16.65712001]
[1736412027425,0.80922854,192.25,192.22,2.6025]
[1736412027824,0.80922854,192.25,192.16,11.72986206]
[1736412028024,0.80922854,192.25,192.24,2.6023]
[1736412028224,0.80922854,192.25,192.16,11.72986206]
[1736412028421,0.80922854,192.24,192.18,2.6031]
[1736412028726,4.14,192.26,192.16,11.72986206]
[1736412028925,0.80933786,192.25,192.22,2.6025]
[1736412029119,4.14,192.26,192.19,10.40616206]
[1736412029426,4.14,192.26,192.25,2.6022]
[1736412029627,4.94925737,192.26,192.25,2.6022]
[1736412029925,4.14,192.26,192.25,2.6022]
[1736412030127,4.16,192.31,192.21,16.64385349]
[1736412030323,0.80914441,192.3,192.29,2.6015]
[1736412031232,0.80912232,192.32,192.29,2.6015]
[1736412031526,0.80912232,192.31,192.21,16.64385349]
[1736412031729,4.16,192.34,192.24,16.64385349]
[1736412031933,0.80898961,192.33,192.24,16.64385349]
[1736412032226,0.80898961,192.33,192.31,2.6013]
[1736412032634,5.6983,192.35,192.31,2.6013]
[1736412032923,0.80887107,192.34,192.27,16.64385349]
[1736412033125,0.80887107,192.34,192.33,2.6011]
[1736412033320,8.51538212,192.39,192.27,16.64385349]
[1736412033321,4.14,192.4,192.28,3.1096]
[1736412033521,0.80877607,192.39,192.28,3.1096]
[1736412034131,0.80876184,192.38,192.35,2.6007]
[1736412034527,0.80876184,192.39,192.35,2.6007]
[1736412034729,0.8087365,192.37,192.35,2.6007]
[1736412034925,181.58836009,192.52,192.34,4.12]
[1736412035129,1.4824,192.51,192.38,16.64385349]
[1736412035526,1.4824,192.51,192.41,16.64385349]
[1736412035835,0.80198072,192.5,192.41,16.64385349]
[1736412036128,0.80198072,192.5,192.39,1.551]
[1736412037123,0.80198072,192.5,192.43,2.5997]
[1736412037628,0.80198072,192.5,192.32,13.19008243]
[1736412037629,0.80198072,192.5,192.4,2.6001]
[1736412037833,4.1,192.49,192.32,25.71393592]
[1736412038131,0.80198072,192.48,192.32,25.71393592]
[1736412038527,17.44583421,192.48,192.32,25.71393592]
[1736412038735,0.80198072,192.47,192.32,25.71393592]
[1736412039427,4.08,192.46,192.32,25.71393592]
[1736412039633,17.44583421,192.45,192.32,9.07008243]
[1736412039829,0.80198072,192.44,192.32,9.07008243]
[1736412040630,0.80198072,192.44,192.32,25.71393592]
[1736412040631,2.41668072,192.44,192.32,25.71393592]
[1736412040932,1.6147,192.44,192.32,25.71393592]
[1736412041531,4.08,192.43,192.35,2.6008]
[1736412041730,4.08,192.43,192.32,25.71393592]
[1736412042524,4.08,192.43,192.38,2.6004]
[1736412042928,4.08,192.43,192.32,25.71393592]
[1736412043324,4.08,192.43,192.38,2.6003]
[1736412044638,4.08,192.43,192.32,25.71393592]
[1736412045135,4.08,192.43,192.32,9.07008243]
[1736412046232,4.08,192.43,192.36,2.6006]
[1736412046430,4.08,192.43,192.32,9.07008243]
[1736412047536,4.08,192.43,192.35,2.6008]
[1736412047745,19.03056215,192.42,192.27,1.4688]
[1736412047938,0.80230866,192.41,192.27,1.4688]
[1736412048240,16.64385349,192.39,192.23,128.45899186]
[1736412048440,0.80256092,192.38,192.23,128.45899186]
[1736412048642,4.04,192.37,192.23,128.45899186]
[1736412048846,0.80262379,192.36,192.23,128.45899186]
[1736412049749,5.6017,192.37,192.29,2.6016]
[1736412049944,0.80262755,192.36,192.29,2.6016]
[1736412050139,5.6017,192.37,192.29,2.6016]
[1736412050343,0.80263292,192.36,192.29,2.6016]
[1736412050646,0.80263292,192.36,192.27,2.6018]
[1736412050845,1.4592,192.35,192.27,2.6018]
[1736412051040,0.80263292,192.34,192.23,128.45899186]
[1736412052140,0.80263292,192.34,192.27,2.6018]
[1736412052340,0.80263292,192.34,192.22,1.5902]
[1736412052937,0.80263292,192.34,192.26,2.6019]
[1736412053643,0.80263292,192.34,192.12,4.02]
[1736412053644,0.80263292,192.34,192.24,2.6023]
[1736412053844,16.64385349,192.32,192.17,16.64385349]
[1736412054046,4.04,192.31,192.17,16.64385349]
[1736412054441,0.80263292,192.3,192.24,2.6023]
[1736412055051,0.80263292,192.3,192.17,16.64385349]
[1736412055052,0.80263292,192.3,192.22,2.6024]
[1736412057647,14.44363288,192.31,192.22,2.6024]
[1736412057648,4.84296762,192.29,192.22,10.40363288]
[1736412057952,4.02,192.28,192.22,10.40363288]
[1736412058251,4.02,192.28,192.26,2.6019]
[1736412059152,1.549,192.33,192.26,2.6019]
[1736412059347,4.822889,192.32,192.26,2.6019]
[1736412059551,0.802889,192.31,192.26,2.6019]
[1736412060350,0.802889,192.31,192.22,10.40363288]
[1736412060552,0.802889,192.31,192.19,10.40363288]
[1736412061155,4.0,192.3,192.22,10.40363288]
[1736412061363,1.549,192.33,192.22,10.40363288]
[1736412061549,4.0,192.29,192.22,10.40363288]
[1736412061856,4.0,192.29,192.26,2.6019]
[1736412063055,4.0,192.29,192.22,10.40363288]
[1736412063056,4.0,192.29,192.24,2.6023]
[1736412063654,4.0,192.29,192.22,2.6026]
[1736412063854,4.0,192.29,192.19,10.40363288]
[1736412065555,4.0,192.29,192.23,2.6024]
[1736412066555,4.0,192.29,192.24,2.6022]
[1736412066853,4.0,192.29,192.19,10.40363288]
[1736412067248,4.0,192.29,192.25,2.602]
[1736412067450,4.0,192.29,192.19,10.40363288]
[1736412067650,4.0,192.29,192.26,2.6019]
[1736412068255,4.0,192.29,192.2,1.4623]
[1736412068558,4.0,192.29,192.19,10.40363288]
[1736412069350,11.20656777,192.28,192.16,10.40363288]
[1736412069553,10.40363288,192.28,192.16,10.40363288]
[1736412070061,10.40363288,192.28,192.21,2.6026]
[1736412070254,0.80295661,192.27,192.21,2.6026]
[1736412070550,0.80295661,192.27,192.16,10.40363288]
[1736412070754,4.0,192.29,192.19,10.40363288]
[1736412071149,4.0,192.29,192.24,2.6022]
[1736412073352,1.4592,192.35,192.22,10.40363288]
[1736412073553,4.04,192.31,192.22,10.40363288]
[1736412073950,4.04,192.31,192.26,2.6019]
[1736412074254,10.40363288,192.34,192.26,2.6019]
[1736412074459,4.82278076,192.33,192.26,2.6019]
[1736412074652,0.80278076,192.32,192.25,2.6022]
[1736412074852,0.80278076,192.32,192.22,10.40363288]
[1736412075352,0.80278076,192.32,192.25,10.40363288]
[1736412075555,4.04,192.33,192.25,10.40363288]
[1736412075754,4.04,192.34,192.25,10.40363288]
[1736412075954,0.80273363,192.33,192.25,10.40363288]
[1736412076265,0.80273363,192.33,192.32,2.6012]
[1736412076458,0.80273363,192.33,192.28,10.40363288]
[1736412076659,4.02,192.39,192.37,2.6005]
[1736412077352,0.80239559,192.38,192.36,2.6007]
[1736412077552,4.02,192.39,192.36,2.6007]
[1736412077953,11.91383288,192.43,192.36,2.6007]
[1736412078159,4.84238923,192.42,192.36,2.6007]
[1736412078357,0.80238923,192.41,192.36,2.6007]
[1736412080253,4.04,192.42,192.36,2.6007]
[1736412080458,4.82238001,192.41,192.36,2.6007]
[1736412080658,0.80238001,192.4,192.36,2.6007]
[1736412081158,0.80242962,192.39,192.36,2.6007]
[1736412081361,0.80242962,192.38,192.36,2.6007]
[1736412081560,4.02,192.41,192.31,10.40363288]
[1736412081862,0.80242542,192.4,192.37,2.6005]
[1736412082465,0.80242542,192.4,192.23,4.316]
[1736412082466,21.60969118,192.4,192.23,2.9948]
[1736412082759,10.40363288,192.27,192.18,8.58899051]
[1736412083061,3.98,192.26,192.18,8.58899051]
[1736412083254,3.98,192.26,192.18,1.518]
[1736412083452,3.98,192.26,192.2,2.6028]
[1736412083655,3.98,192.26,192.18,1.518]
[1736412085357,3.98,192.26,192.24,2.6022]
[1736412086165,3.98,192.26,192.18,1.518]
[1736412087165,16.64588481,192.32,192.24,2.6022]
[1736412087463,4.76285552,192.31,192.24,2.6022]
[1736412087663,0.80285552,192.3,192.24,2.6022]
[1736412088060,0.80285552,192.3,192.25,2.6021]
[1736412088257,0.80285552,192.3,192.18,1.518]
[1736412088460,4.74285552,192.29,192.18,1.518]
[1736412088656,3.94,192.29,192.26,2.602]
[1736412090467,3.94,192.29,192.18,1.518]
[1736412090655,3.94,192.29,192.27,2.6019]
[1736412090862,3.94,192.29,192.18,1.518]
[1736412091063,3.94,192.29,192.27,2.6018]
[1736412096470,3.94,192.29,192.18,1.518]
[1736412096660,16.64588481,192.26,192.17,1.6078]
[1736412096860,16.64588481,192.26,192.19,2.6029]
[1736412097767,0.80301899,192.25,192.13,3.0502]
[1736412097971,16.64588481,192.23,192.13,3.0502]
[1736412098171,4.68301899,192.22,192.07,16.64588481]
[1736412098368,3.88,192.22,192.07,19.69608481]
[1736412098772,0.80317949,192.21,192.07,19.69608481]
[1736412098965,3.88,192.22,192.07,19.69608481]
[1736412099170,0.80323084,192.21,192.07,19.69608481]
[1736412099670,0.80323084,192.21,192.16,2.6033]
[1736412100473,3.86,192.2,192.16,2.6033]
[1736412101374,3.86,192.2,192.07,19.69608481]
[1736412101569,20.50588481,192.2,192.07,3.0502]
[1736412102172,16.64588481,192.17,192.05,1.3235]
[1736412102568,0.80341567,192.16,192.05,1.3235]
[1736412102769,0.80341567,192.16,192.1,2.6041]
[1736412104271,0.80341567,192.16,192.08,2.6044]
[1736412104474,0.80341567,192.16,192.02,2.993]
[1736412104874,0.80348722,192.15,192.02,2.993]
[1736412105072,3.84,192.14,192.02,2.993]
[1736412105274,3.84,192.14,192.09,2.6042]
[1736412105778,3.84,192.14,192.02,2.993]
[1736412106278,3.84,192.14,192.04,16.64588481]
[1736412106577,4.6311,192.19,192.04,16.64588481]
[1736412106768,4.64345041,192.18,192.04,16.64588481]
[1736412107070,3.84,192.18,192.13,2.6037]
[1736412107471,3.84,192.18,192.07,10.41548186]
[1736412108372,3.84,192.18,192.1,2.6042]
[1736412108577,3.84,192.18,192.07,10.41548186]
[1736412109074,3.84,192.18,192.13,2.6037]
[1736412109475,3.84,192.18,192.07,10.41548186]
[1736412110882,3.84,192.18,192.1,2.6042]
[1736412111074,3.84,192.18,192.07,10.41548186]
[1736412112382,3.84,192.18,192.14,2.6036]
[1736412112775,3.84,192.18,192.07,10.41548186]
[1736412113176,3.84,192.18,192.13,2.6037]
[1736412113378,0.80339235,192.17,192.07,10.41548186]
[1736412113578,10.41548186,192.13,192.02,110.69973525]
[1736412113881,3.82,192.12,192.02,110.69973525]
[1736412114382,3.82,192.12,192.08,2.6044]
[1736412114585,3.82,192.12,192.02,110.69973525]
[1736412116082,3.82,192.12,192.07,2.6046]
[1736412117584,3.82,192.12,192.08,2.6045]
[1736412118085,3.82,192.12,192.07,2.6046]
[1736412118585,10.41548186,192.1,192.0,1.3246]
[1736412118886,10.41548186,192.1,191.99,9.08524419]
[1736412119083,1.5529,192.11,191.99,9.08524419]
[1736412119084,10.41548186,192.07,191.99,9.08524419]
[1736412119282,3.8,192.06,192.02,2.6052]
[1736412119483,3.8,192.06,191.99,9.08524419]
[1736412119987,3.8,192.06,192.03,2.605]
[1736412120674,3.8,192.06,192.02,2.6053]
[1736412124284,3.8,192.06,192.0,2.6055]
[1736412124285,10.41548186,192.04,192.0,2.6055]
[1736412124580,10.41548186,192.04,191.92,11.96318186]
[1736412124784,10.41548186,192.04,191.96,2.606]
[1736412124984,10.41548186,192.01,191.9,1.488]
[1736412125184,3.76,192.0,191.9,1.488]
[1736412125487,3.76,192.0,191.95,2.6061]
[1736412126286,3.76,192.0,191.96,2.6061]
[1736412128382,3.76,192.0,191.87,1.5101]
[1736412128578,10.41548186,191.95,191.83,2.9388]
[1736412128777,10.41548186,191.92,191.83,2.9388]
[1736412128979,10.41548186,191.92,191.9,2.6069]
[1736412129583,3.76,191.94,191.93,2.6065]
[1736412130586,3.76,191.94,191.85,10.41548186]
[1736412130786,3.76,191.94,191.83,2.9388]
[1736412131985,10.41548186,191.93,191.83,2.9388]
[1736412132183,10.41548186,191.93,191.82,10.41548186]
[1736412132389,11.95538186,191.93,191.8,1.6115]
[1736412132590,11.95538186,191.93,191.87,2.6072]
[1736412133082,11.95538186,191.93,191.8,1.6115]
[1736412133286,11.95538186,191.93,191.88,2.6072]
[1736412133782,11.95538186,191.93,191.8,1.6115]
[1736412134595,10.41548186,191.9,191.85,2.6075]
[1736412134792,10.41548186,191.9,191.8,1.6115]
[1736412134992,10.41548186,191.9,191.86,2.6074]
[1736412136400,10.41548186,191.87,191.84,2.6077]
[1736412136592,3.72,191.86,191.77,1.4854]
[1736412136902,3.72,191.86,191.83,2.6078]
[1736412137195,10.41548186,191.84,191.75,8.81211833]
[1736412137601,10.41548186,191.84,191.81,2.608]
[1736412141511,3.7,191.84,191.76,10.41548186]
[1736412142005,3.7,191.87,191.76,10.41548186]
[1736412142507,3.7,191.87,191.85,2.6075]
[1736412143307,14.11548186,191.87,191.83,2.6078]
[1736412143607,10.41548186,191.84,191.75,8.81211833]
[1736412143801,3.7,191.87,191.75,8.81211833]
[1736412143802,10.41548186,191.79,191.75,8.81211833]
[1736412144202,14.11548186,191.79,191.75,8.81211833]
[1736412144702,3.7,191.79,191.75,8.81211833]
[1736412144902,3.7,191.79,191.78,2.6085]
[1736412146508,3.7,191.82,191.81,2.6081]
[1736412146802,3.7,191.82,191.75,8.81211833]
[1736412147006,10.41548186,191.76,191.65,171.49389614]
[1736412147306,3.68,191.75,191.65,171.49389614]
[1736412150113,3.68,191.75,191.72,2.6093]
[1736412153315,3.68,191.75,191.65,171.49389614]
[1736412154810,2.6088,191.77,191.65,171.49389614]
[1736412154811,10.41548186,191.8,191.67,10.41548186]
[1736412155213,3.64,191.79,191.7,10.41548186]
[1736412155415,10.41548186,191.9,191.7,14.05548186]